[Event "Betsys MČR v online bleskovém šachu 2021"]
[Site "Chess.com"]
[Date "2021.04.17"]
[Round "4"]
[White "fera_v"]
[Black "Classemence"]
[Result "1-0"]
[WhiteElo "2248"]
[BlackElo "1925"]
[TimeControl "180+1"]
[EndTime "9:39:05 PDT"]
[Termination "Uživatel fera_v zvítězil matem"]

1. e4 {[%clk 0:03:00.9]} 1... c5 {[%clk 0:02:57.1]} 2. Nf3 {[%clk 0:03:00.5]}
2... Nc6 {[%clk 0:02:55.6]} 3. g3 {[%clk 0:03:00.3]} 3... e5 {[%clk 0:02:50.5]}
4. Bg2 {[%clk 0:02:59.5]} 4... Nf6 {[%clk 0:02:38.5]} 5. O-O {[%clk 0:02:56]}
5... Be7 {[%clk 0:02:35.3]} 6. Re1 {[%clk 0:02:54.3]} 6... O-O {[%clk
0:02:34.8]} 7. c3 {[%clk 0:02:54.7]} 7... d6 {[%clk 0:02:28.3]} 8. h3 {[%clk
0:02:54.4]} 8... h6 {[%clk 0:02:24.5]} 9. d4 {[%clk 0:02:53.3]} 9... cxd4 {[%clk
0:02:24.1]} 10. cxd4 {[%clk 0:02:53.5]} 10... Qc7 {[%clk 0:02:22.8]} 11. Nc3
{[%clk 0:02:52.3]} 11... a6 {[%clk 0:02:14.5]} 12. Be3 {[%clk 0:02:48.5]} 12...
b5 {[%clk 0:02:06.9]} 13. Rc1 {[%clk 0:02:48.3]} 13... Bb7 {[%clk 0:01:33.4]}
14. d5 {[%clk 0:02:37]} 14... Na7 {[%clk 0:01:10.4]} 15. Nxb5 {[%clk 0:02:33.1]}
15... Qd7 {[%clk 0:01:10.1]} 16. Nxa7 {[%clk 0:02:32.6]} 16... Bxd5 {[%clk
0:01:03.6]} 17. exd5 {[%clk 0:02:30.6]} 17... Rxa7 {[%clk 0:01:01.5]} 18. Bxa7
{[%clk 0:02:30.4]} 18... Qxa7 {[%clk 0:01:02.4]} 19. Rc6 {[%clk 0:02:23.7]}
19... Rb8 {[%clk 0:00:58.8]} 20. b3 {[%clk 0:02:21.3]} 20... a5 {[%clk
0:00:58.1]} 21. Nd2 {[%clk 0:02:12.3]} 21... a4 {[%clk 0:00:57.7]} 22. Qc2
{[%clk 0:02:09.3]} 22... Qa5 {[%clk 0:00:52.9]} 23. Nc4 {[%clk 0:02:04.1]} 23...
Qxe1+ {[%clk 0:00:51.5]} 24. Kh2 {[%clk 0:02:03.9]} 24... axb3 {[%clk 0:00:50]}
25. axb3 {[%clk 0:02:03]} 25... Bf8 {[%clk 0:00:40.6]} 26. Nxd6 {[%clk
0:01:55.4]} 26... Qb4 {[%clk 0:00:28.2]} 27. Nf5 {[%clk 0:01:45.8]} 27... Qxb3
{[%clk 0:00:24.8]} 28. Qxb3 {[%clk 0:01:45.1]} 28... Rxb3 {[%clk 0:00:25.7]} 29.
d6 {[%clk 0:01:44.7]} 29... Rd3 {[%clk 0:00:24.4]} 30. Rc8 {[%clk 0:01:41.9]}
30... g6 {[%clk 0:00:21.1]} 31. Nxh6+ {[%clk 0:01:31.7]} 31... Kg7 {[%clk
0:00:21.4]} 32. Ng4 {[%clk 0:01:04.5]} 32... Nxg4+ {[%clk 0:00:21.4]} 33. hxg4
{[%clk 0:01:05]} 33... Bxd6 {[%clk 0:00:21.5]} 34. Be4 {[%clk 0:01:00.3]} 34...
Rd2 {[%clk 0:00:21.1]} 35. Kg1 {[%clk 0:00:54.1]} 35... f5 {[%clk 0:00:20.8]}
36. gxf5 {[%clk 0:00:53.3]} 36... gxf5 {[%clk 0:00:17.4]} 37. Bxf5 {[%clk
0:00:53.6]} 37... Kf6 {[%clk 0:00:16.4]} 38. Be4 {[%clk 0:00:53.5]} 38... Rd4
{[%clk 0:00:13.8]} 39. f3 {[%clk 0:00:52.4]} 39... Rd2 {[%clk 0:00:12.8]} 40.
Kf1 {[%clk 0:00:50.8]} 40... Ke6 {[%clk 0:00:11.7]} 41. g4 {[%clk 0:00:49.1]}
41... Kf6 {[%clk 0:00:11.7]} 42. Rg8 {[%clk 0:00:45.7]} 42... Rb2 {[%clk
0:00:11]} 43. Rg6+ {[%clk 0:00:45]} 43... Ke7 {[%clk 0:00:11.1]} 44. Bd5 {[%clk
0:00:42.1]} 44... Kd7 {[%clk 0:00:06.2]} 45. Rg7+ {[%clk 0:00:41.3]} 45... Be7
{[%clk 0:00:05.1]} 46. g5 {[%clk 0:00:40.1]} 46... Kd6 {[%clk 0:00:05.6]} 47.
Be4 {[%clk 0:00:39.4]} 47... Rd2 {[%clk 0:00:04.9]} 48. g6 {[%clk 0:00:38.7]}
48... Rh2 {[%clk 0:00:04.3]} 49. Rf7 {[%clk 0:00:37]} 49... Ke6 {[%clk
0:00:04.5]} 50. Bf5+ {[%clk 0:00:30.7]} 50... Kd6 {[%clk 0:00:05.1]} 51. g7
{[%clk 0:00:30.2]} 51... Rh1+ {[%clk 0:00:05.5]} 52. Kg2 {[%clk 0:00:29.6]}
52... Rh5 {[%clk 0:00:03.4]} 53. g8=Q {[%clk 0:00:28.1]} 53... Rg5+ {[%clk
0:00:03.7]} 54. Qxg5 {[%clk 0:00:28.1]} 54... Bxg5 {[%clk 0:00:04.6]} 55. Kh3
{[%clk 0:00:27.1]} 55... Bf4 {[%clk 0:00:05.5]} 56. Kg4 {[%clk 0:00:27]} 56...
Kc5 {[%clk 0:00:06.4]} 57. Rd7 {[%clk 0:00:26.5]} 57... Kc4 {[%clk 0:00:06.3]}
58. Rd1 {[%clk 0:00:26.3]} 58... Kc3 {[%clk 0:00:06.7]} 59. Be4 {[%clk
0:00:26.9]} 59... Kc4 {[%clk 0:00:07.6]} 60. Kf5 {[%clk 0:00:26.8]} 60... Kc3
{[%clk 0:00:08.2]} 61. Ke6 {[%clk 0:00:26.4]} 61... Kc4 {[%clk 0:00:07.8]} 62.
Kd6 {[%clk 0:00:26.6]} 62... Kc3 {[%clk 0:00:08.4]} 63. Kd5 {[%clk 0:00:26.9]}
63... Kb4 {[%clk 0:00:08.6]} 64. Rd3 {[%clk 0:00:26.5]} 64... Kb5 {[%clk
0:00:08.2]} 65. Rb3+ {[%clk 0:00:26.5]} 65... Ka4 {[%clk 0:00:08.7]} 66. Kc4
{[%clk 0:00:26.7]} 66... Bd2 {[%clk 0:00:07.2]} 67. Bc6+ {[%clk 0:00:23.6]}
67... Ka5 {[%clk 0:00:04.2]} 68. Rb5+ {[%clk 0:00:22.4]} 68... Ka6 {[%clk
0:00:04.4]} 69. Rd5 {[%clk 0:00:21.1]} 69... Kb6 {[%clk 0:00:05.1]} 70. Bb5
{[%clk 0:00:19.2]} 70... Bf4 {[%clk 0:00:04.4]} 71. Rd6+ {[%clk 0:00:17.9]}
71... Kc7 {[%clk 0:00:05.3]} 72. Kd5 {[%clk 0:00:16.6]} 72... Kb7 {[%clk
0:00:06.2]} 73. Kc5 {[%clk 0:00:15.4]} 73... Kc7 {[%clk 0:00:06.7]} 74. Rd7+
{[%clk 0:00:15.1]} 74... Kc8 {[%clk 0:00:06.8]} 75. Kc6 {[%clk 0:00:14.4]} 75...
e4 {[%clk 0:00:07.1]} 76. Ba6+ {[%clk 0:00:14.4]} 76... Kb8 {[%clk 0:00:07]} 77.
Rb7+ {[%clk 0:00:14.3]} 77... Kc8 {[%clk 0:00:07.2]} 78. Rf7+ {[%clk 0:00:12.4]}
78... Kd8 {[%clk 0:00:08.1]} 79. Rxf4 {[%clk 0:00:11.7]} 79... e3 {[%clk
0:00:09]} 80. Re4 {[%clk 0:00:11.7]} 80... e2 {[%clk 0:00:09.9]} 81. Bxe2 {[%clk
0:00:02.6]} 81... Kc8 {[%clk 0:00:09.7]} 82. Re8# {[%clk 0:00:02.4]} 1-0

[Event "Betsys MČR v online bleskovém šachu 2021"]
[Site "Chess.com"]
[Date "2021.04.17"]
[Round "4"]
[White "Tah_na_g12"]
[Black "kubajss"]
[Result "1-0"]
[WhiteElo "1180"]
[BlackElo "873"]
[TimeControl "180+1"]
[EndTime "9:39:09 PDT"]
[Termination "Uživatel Tah_na_g12 zvítězil matem"]

1. e4 {[%clk 0:03:00.9]} 1... e5 {[%clk 0:02:59.9]} 2. Nf3 {[%clk 0:02:59.6]}
2... Nc6 {[%clk 0:02:59.8]} 3. Bc4 {[%clk 0:02:57.8]} 3... Bc5 {[%clk 0:02:56]}
4. c3 {[%clk 0:02:56.2]} 4... d6 {[%clk 0:02:55.8]} 5. d4 {[%clk 0:02:52.5]}
5... Bb6 {[%clk 0:02:46.6]} 6. dxe5 {[%clk 0:02:49.1]} 6... dxe5 {[%clk
0:02:35.7]} 7. Qxd8+ {[%clk 0:02:47.6]} 7... Nxd8 {[%clk 0:02:27.8]} 8. Nxe5
{[%clk 0:02:45.4]} 8... Be6 {[%clk 0:02:25.4]} 9. Bxe6 {[%clk 0:02:41.8]} 9...
Nxe6 {[%clk 0:02:24.4]} 10. O-O {[%clk 0:02:32.7]} 10... f6 {[%clk 0:02:15.5]}
11. Nf3 {[%clk 0:02:28.3]} 11... O-O-O {[%clk 0:02:15.1]} 12. Be3 {[%clk
0:02:18.1]} 12... Kb8 {[%clk 0:02:01]} 13. Bxb6 {[%clk 0:02:15.7]} 13... axb6
{[%clk 0:02:00.6]} 14. Na3 {[%clk 0:02:09.8]} 14... Ne7 {[%clk 0:02:00.6]} 15.
Rfd1 {[%clk 0:02:07.7]} 15... f5 {[%clk 0:01:52.4]} 16. exf5 {[%clk 0:02:04.3]}
16... Nxf5 {[%clk 0:01:52]} 17. Re1 {[%clk 0:02:00.8]} 17... Rhe8 {[%clk
0:01:50.8]} 18. Rad1 {[%clk 0:01:58.8]} 18... Re7 {[%clk 0:01:38.2]} 19. Rxd8+
{[%clk 0:01:55.2]} 19... Nxd8 {[%clk 0:01:37.9]} 20. Rxe7 {[%clk 0:01:55.6]}
20... Nxe7 {[%clk 0:01:37.2]} 21. Kf1 {[%clk 0:01:55.3]} 21... Nec6 {[%clk
0:01:34.8]} 22. Ke2 {[%clk 0:01:53.4]} 22... Ne6 {[%clk 0:01:34.9]} 23. Ke3
{[%clk 0:01:51.6]} 23... Nc5 {[%clk 0:01:28.6]} 24. b4 {[%clk 0:01:41.7]} 24...
Na4 {[%clk 0:01:25.4]} 25. Kd3 {[%clk 0:01:38.2]} 25... h5 {[%clk 0:01:13.5]}
26. h3 {[%clk 0:01:26.8]} 26... g6 {[%clk 0:01:11.4]} 27. b5 {[%clk 0:01:12.6]}
27... Ne7 {[%clk 0:01:08.4]} 28. g4 {[%clk 0:00:45.6]} 28... Nd5 {[%clk
0:01:06]} 29. c4 {[%clk 0:00:42.4]} 29... Ndc3 {[%clk 0:01:00.2]} 30. Ne5 {[%clk
0:00:33.7]} 30... hxg4 {[%clk 0:00:55.9]} 31. hxg4 {[%clk 0:00:32.4]} 31... g5
{[%clk 0:00:55.2]} 32. Nf7 {[%clk 0:00:27.6]} 32... Nxa2 {[%clk 0:00:53.4]} 33.
Nxg5 {[%clk 0:00:26]} 33... Nc5+ {[%clk 0:00:52.3]} 34. Kd4 {[%clk 0:00:24.5]}
34... Nb4 {[%clk 0:00:45.2]} 35. f4 {[%clk 0:00:21.2]} 35... Nd7 {[%clk
0:00:43]} 36. f5 {[%clk 0:00:20.1]} 36... Nf6 {[%clk 0:00:41.4]} 37. Ne4 {[%clk
0:00:19.1]} 37... Nxg4 {[%clk 0:00:33.5]} 38. f6 {[%clk 0:00:18.4]} 38... Nh6
{[%clk 0:00:31.4]} 39. Ke5 {[%clk 0:00:18]} 39... c6 {[%clk 0:00:24.3]} 40. bxc6
{[%clk 0:00:16]} 40... bxc6 {[%clk 0:00:24.3]} 41. Ke6 {[%clk 0:00:16.2]} 41...
c5 {[%clk 0:00:22.5]} 42. f7 {[%clk 0:00:16.3]} 42... Nxf7 {[%clk 0:00:18.4]}
43. Kxf7 {[%clk 0:00:17.2]} 43... Nc6 {[%clk 0:00:18.5]} 44. Ke6 {[%clk
0:00:16]} 44... Kc7 {[%clk 0:00:18.7]} 45. Kd5 {[%clk 0:00:13.2]} 45... Nd4
{[%clk 0:00:18.3]} 46. Nf6 {[%clk 0:00:12.1]} 46... Kb7 {[%clk 0:00:14.6]} 47.
Ne8 {[%clk 0:00:12.1]} 47... Ka6 {[%clk 0:00:13.2]} 48. Nc7+ {[%clk 0:00:11.1]}
48... Kb7 {[%clk 0:00:13.2]} 49. Ncb5 {[%clk 0:00:10.7]} 49... Ka6 {[%clk
0:00:12.3]} 50. Nxd4 {[%clk 0:00:10.2]} 50... cxd4 {[%clk 0:00:12.6]} 51. Kxd4
{[%clk 0:00:11.1]} 51... Kb7 {[%clk 0:00:12.2]} 52. Kc3 {[%clk 0:00:10.2]} 52...
Kc6 {[%clk 0:00:12.2]} 53. Kb4 {[%clk 0:00:10.1]} 53... Kc7 {[%clk 0:00:12.1]}
54. Kb5 {[%clk 0:00:09.9]} 54... Kb7 {[%clk 0:00:12.1]} 55. Nc2 {[%clk
0:00:08.5]} 55... Kc7 {[%clk 0:00:12.4]} 56. Nd4 {[%clk 0:00:08.2]} 56... Kb7
{[%clk 0:00:13]} 57. Ne6 {[%clk 0:00:07.8]} 57... Ka7 {[%clk 0:00:12.2]} 58. Nc7
{[%clk 0:00:07.1]} 58... Kb7 {[%clk 0:00:12.5]} 59. Nd5 {[%clk 0:00:06.3]} 59...
Ka7 {[%clk 0:00:12]} 60. Nxb6 {[%clk 0:00:06.6]} 60... Kb7 {[%clk 0:00:12.1]}
61. c5 {[%clk 0:00:06.1]} 61... Kc7 {[%clk 0:00:11]} 62. c6 {[%clk 0:00:06.2]}
62... Kd6 {[%clk 0:00:10.9]} 63. Nc8+ {[%clk 0:00:04.3]} 63... Kc7 {[%clk
0:00:10.9]} 64. Ne7 {[%clk 0:00:03.3]} 64... Kd6 {[%clk 0:00:10.6]} 65. Kb6
{[%clk 0:00:03]} 65... Kxe7 {[%clk 0:00:08.2]} 66. Kb7 {[%clk 0:00:03.4]} 66...
Ke6 {[%clk 0:00:08.7]} 67. c7 {[%clk 0:00:04.1]} 67... Ke5 {[%clk 0:00:09.2]}
68. c8=Q {[%clk 0:00:04.5]} 68... Kd4 {[%clk 0:00:09.5]} 69. Qc7 {[%clk
0:00:04.8]} 69... Ke4 {[%clk 0:00:09.3]} 70. Qc5 {[%clk 0:00:04.5]} 70... Kd3
{[%clk 0:00:08.9]} 71. Kb6 {[%clk 0:00:03.1]} 71... Ke2 {[%clk 0:00:07.4]} 72.
Qd4 {[%clk 0:00:03.1]} 72... Kf3 {[%clk 0:00:06.6]} 73. Kc5 {[%clk 0:00:02.1]}
73... Ke2 {[%clk 0:00:06.9]} 74. Qc3 {[%clk 0:00:01.7]} 74... Kf2 {[%clk
0:00:06.9]} 75. Qd3 {[%clk 0:00:01.7]} 75... Ke1 {[%clk 0:00:07]} 76. Qc2 {[%clk
0:00:01.1]} 76... Kf1 {[%clk 0:00:06.5]} 77. Qd2 {[%clk 0:00:01.3]} 77... Kg1
{[%clk 0:00:06.7]} 78. Kd4 {[%clk 0:00:02]} 78... Kf1 {[%clk 0:00:06.3]} 79. Ke3
{[%clk 0:00:02.9]} 79... Kg1 {[%clk 0:00:06.5]} 80. Qf2+ {[%clk 0:00:02.7]}
80... Kh1 {[%clk 0:00:06.7]} 81. Qe2 {[%clk 0:00:02.8]} 81... Kg1 {[%clk
0:00:06.6]} 82. Kf3 {[%clk 0:00:03.3]} 82... Kh1 {[%clk 0:00:07]} 83. Qg2#
{[%clk 0:00:04]} 1-0

[Event "Betsys MČR v online bleskovém šachu 2021"]
[Site "Chess.com"]
[Date "2021.04.17"]
[Round "4"]
[White "rolkento"]
[Black "Tretrik"]
[Result "0-1"]
[WhiteElo "2239"]
[BlackElo "2076"]
[TimeControl "180+1"]
[EndTime "9:40:01 PDT"]
[Termination "Uživatel Tretrik zvítězil po vzdání soupeře"]

1. e4 {[%clk 0:03:00.9]} 1... c5 {[%clk 0:02:59]} 2. c3 {[%clk 0:03:00.9]} 2...
d5 {[%clk 0:02:56.8]} 3. e5 {[%clk 0:03:00.5]} 3... Nc6 {[%clk 0:02:55.5]} 4. f4
{[%clk 0:03:00.7]} 4... h5 {[%clk 0:02:47.1]} 5. Nf3 {[%clk 0:03:00.8]} 5... Bf5
{[%clk 0:02:46.5]} 6. d4 {[%clk 0:03:00.4]} 6... e6 {[%clk 0:02:45.6]} 7. Be3
{[%clk 0:03:00.3]} 7... cxd4 {[%clk 0:02:42.1]} 8. Nxd4 {[%clk 0:02:59.8]} 8...
Nge7 {[%clk 0:02:36.9]} 9. Nd2 {[%clk 0:02:55.9]} 9... Nxd4 {[%clk 0:02:35.8]}
10. Bxd4 {[%clk 0:02:55.7]} 10... Nc6 {[%clk 0:02:35.1]} 11. Nf3 {[%clk
0:02:55.7]} 11... Be7 {[%clk 0:02:28.9]} 12. Bd3 {[%clk 0:02:51.1]} 12... g6
{[%clk 0:02:16.2]} 13. O-O {[%clk 0:02:46]} 13... a6 {[%clk 0:01:58.7]} 14. Qd2
{[%clk 0:01:53]} 14... Qc7 {[%clk 0:01:57]} 15. a4 {[%clk 0:01:43.8]} 15... Na5
{[%clk 0:01:53.2]} 16. Qc2 {[%clk 0:01:11.5]} 16... Rc8 {[%clk 0:01:32.9]} 17.
Bxf5 {[%clk 0:01:06.9]} 17... gxf5 {[%clk 0:01:32.4]} 18. Qf2 {[%clk 0:01:02.7]}
18... Nb3 {[%clk 0:01:19.5]} 19. Rad1 {[%clk 0:00:54.5]} 19... Qc4 {[%clk
0:01:13.4]} 20. Nd2 {[%clk 0:00:45.5]} 20... Qxa4 {[%clk 0:01:08.3]} 21. Nxb3
{[%clk 0:00:42.2]} 21... Qxb3 {[%clk 0:01:09.2]} 22. Rd3 {[%clk 0:00:35.1]}
22... Qb5 {[%clk 0:00:48.3]} 23. Rh3 {[%clk 0:00:34.2]} 23... h4 {[%clk
0:00:40.1]} 24. Re3 {[%clk 0:00:30]} 24... Rg8 {[%clk 0:00:38.6]} 25. g3 {[%clk
0:00:27.5]} 25... Qc4 {[%clk 0:00:34.3]} 26. Rfe1 {[%clk 0:00:21.3]} 26... b5
{[%clk 0:00:31.6]} 27. Qe2 {[%clk 0:00:19.1]} 27... b4 {[%clk 0:00:27.1]} 28.
Qxc4 {[%clk 0:00:16.4]} 28... Rxc4 {[%clk 0:00:27.5]} 29. Kf2 {[%clk 0:00:15.5]}
29... Kd7 {[%clk 0:00:23.8]} 30. Ra1 {[%clk 0:00:14.7]} 30... Ra8 {[%clk
0:00:22.6]} 31. b3 {[%clk 0:00:12.8]} 31... Rc6 {[%clk 0:00:20]} 32. cxb4 {[%clk
0:00:11.7]} 32... Bxb4 {[%clk 0:00:18.9]} 33. gxh4 {[%clk 0:00:10.2]} 33... a5
{[%clk 0:00:16.6]} 34. Re2 {[%clk 0:00:09.6]} 34... Rh8 {[%clk 0:00:15.4]} 35.
Kg3 {[%clk 0:00:08.1]} 35... Rcc8 {[%clk 0:00:14.9]} 36. Raa2 {[%clk 0:00:05.7]}
36... Rcg8+ {[%clk 0:00:14.3]} 37. Kh3 {[%clk 0:00:04.7]} 37... Rg4 {[%clk
0:00:13.8]} 38. Bf2 {[%clk 0:00:02.8]} 38... Be7 {[%clk 0:00:13.5]} 39. Bg3
{[%clk 0:00:02]} 39... Bxh4 {[%clk 0:00:13.2]} 40. Kg2 {[%clk 0:00:01.4]} 40...
Rhg8 {[%clk 0:00:13]} 41. Kf3 {[%clk 0:00:01.8]} 41... Bxg3 {[%clk 0:00:12.7]}
42. hxg3 {[%clk 0:00:02.5]} 42... Rxg3+ {[%clk 0:00:13]} 43. Kf2 {[%clk
0:00:03.1]} 43... Rxb3 {[%clk 0:00:12.6]} 44. Rxa5 {[%clk 0:00:02.3]} 44... Rgb8
{[%clk 0:00:12.3]} 45. Ra7+ {[%clk 0:00:02.2]} 45... R8b7 {[%clk 0:00:12.5]} 46.
Rea2 {[%clk 0:00:02.2]} 46... Rxa7 {[%clk 0:00:08.3]} 47. Rxa7+ {[%clk
0:00:03.1]} 47... Ke8 {[%clk 0:00:08.6]} 48. Ke2 {[%clk 0:00:03.3]} 48... Kf8
{[%clk 0:00:08.7]} 49. Kf2 {[%clk 0:00:03.6]} 49... Kg7 {[%clk 0:00:08.8]} 50.
Ke2 {[%clk 0:00:03.7]} 50... Kg6 {[%clk 0:00:09]} 51. Rc7 {[%clk 0:00:02.9]}
51... Rb6 {[%clk 0:00:03.6]} 52. Kf3 {[%clk 0:00:02.7]} 52... f6 {[%clk
0:00:03.5]} 53. exf6 {[%clk 0:00:02.5]} 53... Kxf6 {[%clk 0:00:03.8]} 54. Rc8
{[%clk 0:00:03.4]} 54... Rb3+ {[%clk 0:00:03.6]} 55. Kf2 {[%clk 0:00:03]} 55...
Kg6 {[%clk 0:00:03.6]} 56. Rc6 {[%clk 0:00:02.7]} 56... Kf6 {[%clk 0:00:03.1]}
57. Ra6 {[%clk 0:00:03.2]} 57... Ke7 {[%clk 0:00:03.2]} 58. Ra7+ {[%clk
0:00:03.1]} 58... Kd6 {[%clk 0:00:03.3]} 59. Ra6+ {[%clk 0:00:03.7]} 59... Kd7
{[%clk 0:00:03.6]} 60. Ra7+ {[%clk 0:00:04.2]} 60... Kc6 {[%clk 0:00:03.9]} 61.
Ra6+ {[%clk 0:00:04.5]} 61... Rb6 {[%clk 0:00:04]} 62. Ra8 {[%clk 0:00:04.9]}
62... Kc5 {[%clk 0:00:04.3]} 63. Ke3 {[%clk 0:00:04]} 63... Rb3+ {[%clk
0:00:03.9]} 64. Kd2 {[%clk 0:00:03.6]} 64... Kd4 {[%clk 0:00:04.1]} 65. Ra4+
{[%clk 0:00:03.8]} 65... Kc5 {[%clk 0:00:03]} 66. Ra6 {[%clk 0:00:03.7]} 66...
Rb6 {[%clk 0:00:03]} 67. Ra5+ {[%clk 0:00:02.6]} 67... Kc4 {[%clk 0:00:02.5]}
68. Ra4+ {[%clk 0:00:02.8]} 68... Kc5 {[%clk 0:00:02.3]} 69. Ra5+ {[%clk
0:00:03]} 69... Kd6 {[%clk 0:00:02.8]} 70. Ra8 {[%clk 0:00:03]} 70... Rb4 {[%clk
0:00:01.7]} 71. Ke3 {[%clk 0:00:03.3]} 71... Kc5 {[%clk 0:00:02.2]} 72. Re8
{[%clk 0:00:02.2]} 72... Rb6 {[%clk 0:00:01.8]} 73. Re7 {[%clk 0:00:02]} 73...
Kb5 {[%clk 0:00:02.7]} 74. Re8 {[%clk 0:00:01.9]} 74... Kc5 {[%clk 0:00:03.3]}
75. Re7 {[%clk 0:00:02.2]} 75... Rc6 {[%clk 0:00:04.2]} 76. Re8 {[%clk
0:00:02.7]} 76... Kd6 {[%clk 0:00:05.1]} 77. Rf8 {[%clk 0:00:01.8]} 77... Rc3+
{[%clk 0:00:05.6]} 78. Ke2 {[%clk 0:00:01.8]} 78... Rc4 {[%clk 0:00:06.5]} 79.
Kf3 {[%clk 0:00:02.1]} 79... Rc3+ {[%clk 0:00:06.5]} 80. Kf2 {[%clk 0:00:02.6]}
80... Kc5 {[%clk 0:00:06.6]} 81. Rc8+ {[%clk 0:00:02.3]} 81... Kd4 {[%clk
0:00:06.7]} 82. Re8 {[%clk 0:00:03]} 82... Rc6 {[%clk 0:00:06.8]} 83. Kf3 {[%clk
0:00:01.6]} 83... Rc3+ {[%clk 0:00:06.7]} 84. Kf2 {[%clk 0:00:02.1]} 84... Ke4
{[%clk 0:00:07]} 85. Rxe6+ {[%clk 0:00:01.7]} 85... Kxf4 {[%clk 0:00:07.2]} 86.
Rd6 {[%clk 0:00:02.4]} 86... Rc2+ {[%clk 0:00:07.3]} 87. Ke1 {[%clk 0:00:02.4]}
87... Ke4 {[%clk 0:00:07.4]} 88. Re6+ {[%clk 0:00:02.3]} 88... Kf3 {[%clk
0:00:07.6]} 89. Rd6 {[%clk 0:00:02.5]} 89... Rc5 {[%clk 0:00:07.7]} 90. Rd8
{[%clk 0:00:01.8]} 90... f4 {[%clk 0:00:08.1]} 91. Ra8 {[%clk 0:00:01.8]} 91...
Rc3 {[%clk 0:00:07.9]} 92. Rd8 {[%clk 0:00:01.6]} 92... Rd3 {[%clk 0:00:07.9]}
93. Rh8 {[%clk 0:00:01.6]} 93... Ke3 {[%clk 0:00:07.8]} 94. Re8+ {[%clk
0:00:01.8]} 94... Kf3 {[%clk 0:00:07.9]} 95. Rh8 {[%clk 0:00:01.9]} 95... Re3+
{[%clk 0:00:08.2]} 96. Kd2 {[%clk 0:00:01.1]} 96... d4 {[%clk 0:00:08.8]} 97.
Rd8 {[%clk 0:00:01.2]} 97... Re2+ {[%clk 0:00:08.6]} 98. Kd3 {[%clk 0:00:01.2]}
98... Re1 {[%clk 0:00:08.7]} 99. Rxd4 {[%clk 0:00:01.9]} 99... Rd1+ {[%clk
0:00:08.7]} 100. Kc4 {[%clk 0:00:02.5]} 100... Rxd4+ {[%clk 0:00:09.2]} 101.
Kxd4 {[%clk 0:00:03.4]} 101... Ke2 {[%clk 0:00:09.7]} 102. Ke4 {[%clk
0:00:03.7]} 102... f3 {[%clk 0:00:10.6]} 103. Kf4 {[%clk 0:00:04.6]} 103... f2
{[%clk 0:00:11.1]} 104. Kg4 {[%clk 0:00:05.5]} 104... f1=Q {[%clk 0:00:12]} 0-1

[Event "Betsys MČR v online bleskovém šachu 2021"]
[Site "Chess.com"]
[Date "2021.04.17"]
[Round "5"]
[White "MatyldaCZ"]
[Black "tondapesek"]
[Result "1-0"]
[WhiteElo "1384"]
[BlackElo "1035"]
[TimeControl "180+1"]
[EndTime "9:42:03 PDT"]
[Termination "Uživatel MatyldaCZ zvítězil po vzdání soupeře"]

1. e4 {[%clk 0:03:00.9]} 1... e5 {[%clk 0:03:00]} 2. Nf3 {[%clk 0:03:01.2]} 2...
Nc6 {[%clk 0:02:59.9]} 3. Bc4 {[%clk 0:03:01.2]} 3... Bc5 {[%clk 0:02:59.8]} 4.
c3 {[%clk 0:03:00.7]} 4... Nf6 {[%clk 0:02:59.3]} 5. d4 {[%clk 0:03:01.2]} 5...
exd4 {[%clk 0:02:59.4]} 6. cxd4 {[%clk 0:03:01.6]} 6... Bb4+ {[%clk 0:02:59.7]}
7. Bd2 {[%clk 0:03:01.5]} 7... Bxd2+ {[%clk 0:02:59.8]} 8. Nbxd2 {[%clk
0:03:01.3]} 8... O-O {[%clk 0:02:59.6]} 9. O-O {[%clk 0:03:01.2]} 9... d6 {[%clk
0:02:59.5]} 10. Re1 {[%clk 0:02:59.4]} 10... Bd7 {[%clk 0:02:58.3]} 11. h3
{[%clk 0:02:58]} 11... h6 {[%clk 0:02:56.9]} 12. e5 {[%clk 0:02:55.1]} 12...
dxe5 {[%clk 0:02:56.8]} 13. dxe5 {[%clk 0:02:55.3]} 13... Nh7 {[%clk 0:02:55.9]}
14. Bd3 {[%clk 0:02:54.3]} 14... Ng5 {[%clk 0:02:54.7]} 15. Nxg5 {[%clk
0:02:52.3]} 15... Qxg5 {[%clk 0:02:54.7]} 16. Nf3 {[%clk 0:02:52.1]} 16... Qf4
{[%clk 0:02:54]} 17. Re4 {[%clk 0:02:40.1]} 17... Qf5 {[%clk 0:02:47.2]} 18. Rg4
{[%clk 0:02:22.8]} 18... Qh7 {[%clk 0:02:40.8]} 19. Bxh7+ {[%clk 0:02:22]} 1-0

[Event "Betsys MČR v online bleskovém šachu 2021"]
[Site "Chess.com"]
[Date "2021.04.17"]
[Round "5"]
[White "YoungMegaMind"]
[Black "stripe122"]
[Result "1-0"]
[WhiteElo "2226"]
[BlackElo "1790"]
[TimeControl "180+1"]
[EndTime "9:42:28 PDT"]
[Termination "Uživatel YoungMegaMind zvítězil matem"]

1. Nf3 {[%clk 0:03:00.9]} 1... Nf6 {[%clk 0:02:57.5]} 2. e3 {[%clk 0:03:01.1]}
2... c5 {[%clk 0:02:53.4]} 3. b3 {[%clk 0:03:00.6]} 3... g6 {[%clk 0:02:49.8]}
4. Bb2 {[%clk 0:03:00.5]} 4... Bg7 {[%clk 0:02:48.8]} 5. c4 {[%clk 0:02:58.2]}
5... O-O {[%clk 0:02:46.8]} 6. Nc3 {[%clk 0:02:58.3]} 6... Nc6 {[%clk
0:02:41.7]} 7. Be2 {[%clk 0:02:57.3]} 7... b6 {[%clk 0:02:35.9]} 8. O-O {[%clk
0:02:56.8]} 8... Bb7 {[%clk 0:02:34.5]} 9. Rc1 {[%clk 0:02:51.2]} 9... Rc8
{[%clk 0:02:33]} 10. d4 {[%clk 0:02:38.8]} 10... cxd4 {[%clk 0:02:28.1]} 11.
Nxd4 {[%clk 0:02:38.7]} 11... Nxd4 {[%clk 0:02:11.6]} 12. Qxd4 {[%clk
0:02:34.6]} 12... d5 {[%clk 0:01:59.7]} 13. Nxd5 {[%clk 0:02:30.6]} 13... Nxd5
{[%clk 0:01:56.3]} 14. Qxg7# {[%clk 0:02:29.6]} 1-0

[Event "Betsys MČR v online bleskovém šachu 2021"]
[Site "Chess.com"]
[Date "2021.04.17"]
[Round "5"]
[White "reflexia64"]
[Black "Milan_Jancek"]
[Result "1-0"]
[WhiteElo "2277"]
[BlackElo "1819"]
[TimeControl "180+1"]
[EndTime "9:42:42 PDT"]
[Termination "Uživatel reflexia64 zvítězil po vzdání soupeře"]

1. b3 {[%clk 0:03:00.9]} 1... e5 {[%clk 0:02:59.5]} 2. Bb2 {[%clk 0:02:59.7]}
2... d6 {[%clk 0:03:00.1]} 3. c4 {[%clk 0:02:57.2]} 3... Nc6 {[%clk 0:03:00.7]}
4. g3 {[%clk 0:02:53.8]} 4... g6 {[%clk 0:02:59.9]} 5. Bg2 {[%clk 0:02:53.7]}
5... Bg7 {[%clk 0:03:00.5]} 6. e3 {[%clk 0:02:47.1]} 6... Nge7 {[%clk
0:03:00.7]} 7. Ne2 {[%clk 0:02:47]} 7... O-O {[%clk 0:03:00.7]} 8. O-O {[%clk
0:02:45.7]} 8... f5 {[%clk 0:03:00.4]} 9. f4 {[%clk 0:02:44.6]} 9... Nb4 {[%clk
0:02:45.2]} 10. d3 {[%clk 0:02:40.2]} 10... c5 {[%clk 0:02:35.3]} 11. a3 {[%clk
0:02:37]} 11... Nbc6 {[%clk 0:02:35.4]} 12. Qc2 {[%clk 0:02:25.5]} 12... Be6
{[%clk 0:02:34.3]} 13. Nbc3 {[%clk 0:02:21]} 13... Qc7 {[%clk 0:02:30.6]} 14.
Nd5 {[%clk 0:02:19.3]} 14... Bxd5 {[%clk 0:02:29]} 15. cxd5 {[%clk 0:02:18.8]}
15... Nd8 {[%clk 0:02:28.7]} 16. b4 {[%clk 0:02:11.3]} 16... b6 {[%clk
0:02:28.8]} 17. bxc5 {[%clk 0:02:08.8]} 17... bxc5 {[%clk 0:02:28.9]} 18. fxe5
{[%clk 0:02:08]} 18... Bxe5 {[%clk 0:02:24.6]} 19. Bxe5 {[%clk 0:02:06.5]} 19...
dxe5 {[%clk 0:02:25]} 20. d6 {[%clk 0:02:06.4]} 20... Qxd6 {[%clk 0:02:22.4]}
1-0